Cogmind - Beta 10.2 @@@ ROGUE MODE // 2021.01.08 @ 16:46:30 Player: WayneKnight Result: Self-destructed Performance ------------- Evolutions (0) 0 Regions Visited (4) 800 Robots Destroyed (38) 190 Value Destroyed (939) 939 Prototype IDs (23) 460 Alien Tech Used (0) 0 Bonus (236) 236 TOTAL SCORE: 2625 Bonus ------- Aligned with FarCom 300 Friendly Fire -64 Cogmind --------- Core Integrity 71/250 Matter 218/300 Energy 237/275 System Corruption 2% Temperature Cool (0) Movement Treading (230) Ox3 Location -9/Mines Parts ------- > --- POWER (1) -------- Deuterium Engine > --- PROPULSION (2) --- Armored Treads > --- UTILITY (2) ------ High-capacity Storage Unit High-capacity Storage Unit > --- WEAPON (2) ------- Light Assault Rifle > --- INVENTORY (20) --- Ion Engine Light Nuclear Core Light Treads Light Treads Light Treads Light Treads Light Treads Large Storage Unit High-capacity Storage Unit Utility Shielding Insulated Plating Supersonic Drone Bay (1/1) Particle Gun Assault Rifle Shotgun Makeshift Shrapnel Gun Missile Launcher Datajack Katana Longsword +1 Peak State ------------ > --- POWER ------------ Deuterium Engine > --- PROPULSION ------- Light Treads Armored Treads > --- UTILITY ---------- High-capacity Storage Unit High-capacity Storage Unit > --- WEAPON ----------- Shock Bomb Launcher Missile Launcher > --- INVENTORY -------- Ion Engine Light Nuclear Core Light Treads Light Treads Light Treads Light Treads Light Treads Large Storage Unit High-capacity Storage Unit Utility Shielding Insulated Plating Supersonic Drone Bay Particle Gun Assault Rifle Light Assault Rifle Shotgun Makeshift Shrapnel Gun Datajack Katana Longsword +1 [Rating: 19] Favorites ----------- Power Deuterium Engine Engine Deuterium Engine Propulsion Light Treads Treads Light Treads Leg Aluminum Leg Utility Large Storage Unit Storage Large Storage Unit Weapon Assault Rifle Energy Gun EM Pulse Gun Energy Cannon Beam Cannon Ballistic Gun Assault Rifle Launcher Shock Bomb Launcher Special Melee Weapon Datajack Build | -11 -10 -10 -10 -9 ------- Run | Scr Mat Min Exi Min Slots Evolved . | . . . . . Power . | . . . . . Propulsion . | . . . . . Utility . | . . . . . Weapon . | . . . . . Parts Attached 37 | 1 17 7 2 10 Power 3 | . 1 2 . . Engine 3 | . 1 2 . . Core . | . . . . . Reactor . | . . . . . Propulsion 7 | . 6 1 . . Treads 7 | . 6 1 . . Leg . | . . . . . Wheel . | . . . . . Hover . | . . . . . Flight . | . . . . . Utility 5 | 1 2 . 2 . Device . | . . . . . Storage 5 | 1 2 . 2 . Processor . | . . . . . Hackware . | . . . . . Protection . | . . . . . Artifact . | . . . . . Weapon 22 | . 8 4 . 10 Energy Gun 2 | . 2 . . . Energy Cannon 2 | . 2 . . . Ballistic Gun 12 | . 3 3 . 6 Ballistic Cannon . | . . . . . Launcher 4 | . . . . 4 Special Weapon . | . . . . . Impact Weapon . | . . . . . Slashing Weapon . | . . . . . Piercing Weapon . | . . . . . Special Melee Weapon 2 | . 1 1 . . Unidentified Prototypes . | . . . . . Parts Lost 4 | . 1 1 . 2 Power . | . . . . . Propulsion 1 | . . . . 1 Utility . | . . . . . Weapon 3 | . 1 1 . 1 Highest Loss Streak 2 | . 1 1 . 2 Average Slot Usage (%) 96 | . 99 100 86 97 Engine 14 | . 14 14 14 14 Treads 27 | . 26 28 28 27 Storage 28 | . 28 28 28 28 Energy Gun 3 | . 7 3 . . Energy Cannon 1 | . 5 . . . Ballistic Gun 18 | . 12 24 15 23 Naked Turns . | . . . . . Heaviest Build 85 | 14 40 45 76 85 Greatest Support 40 | 20 40 40 40 40 Greatest Overweight (x) 2 | . . 1 1 2 Average Overweight (x) . | . . . 1 1 Largest Inventory Capacity 20 | 8 16 16 20 20 Average Capacity 14 | 6 10 16 17 20 Most Carried 20 | 6 13 16 20 20 Average Carried 14 | 6 9 15 17 19 Final Capacity 20 | 8 16 16 20 20 Final Carried 20 | 6 13 16 20 20 Class Distribution -------------------- 78% | Mutant 21% | Hauler-Mutant Dominant Class ---------------- Mutant | -10/Materials Mutant | -10/Mines Hauler-Mutant | -10/Exiles Hauler-Mutant | -9/Mines Resources | -11 -10 -10 -10 -9 ----------- Run | Scr Mat Min Exi Min Matter Collected 832 | 212 302 171 . 147 Remotely . | . . . . . Salvage Created 1420 | 113 652 245 . 410 Parts 84 | 6 50 15 . 13 Haulers Intercepted 1 | . 1 . . . Recyclers Shooed . | . . . . . Parts Field Recycled . | . . . . . Retrieved Matter . | . . . . . Parts Self-Destructed . | . . . . . Prevented . | . . . . . Kills | -11 -10 -10 -10 -9 ------- Run | Scr Mat Min Exi Min Combat Hostiles Destroyed 33 | . 17 7 . 9 Guns 18 | . 9 7 . 2 Cannons 8 | . 8 . . . AOE 7 | . . . . 7 Classes Destroyed 10 | 2 6 . . 2 Worker 1 | . 1 . . . Tunneler 1 | 1 . . . . Hauler 1 | . 1 . . . Recycler 3 | 1 . . . 2 Operator 1 | . 1 . . . Watcher 1 | . 1 . . . Swarmer 9 | . 6 3 . . Grunt 20 | . 11 4 . 5 Duelist 1 | . . . . 1 Assembled 3 | . . . . 3 Best Kill Streak 4 | 2 4 3 . 4 Combat Bots Only 3 | . 3 3 . 3 Max Kills in Single Turn 3 | 1 2 1 . 3 Gunslinging 1 | . 1 . . . Exploded 3 | . . . . 3 Melee . | . . . . . Uniques/NPCs Destroyed . | . . . . . Combat | -11 -10 -10 -10 -9 -------- Run | Scr Mat Min Exi Min Damage Taken 1360 | . 557 391 . 412 Core 179 | . 78 26 . 75 Absorbed by Shields . | . . . . . Core Remaining (%) 100 | 100 . . . . Volleys Fired 93 | 4 51 24 . 14 Largest 2 | 2 2 2 . 2 Hottest 80 | 60 80 60 . 72 Shots Fired 181 | 8 101 47 . 25 Gun 137 | 8 70 47 . 12 Cannon 31 | . 31 . . . Launcher 13 | . . . . 13 Special . | . . . . . Kinetic 105 | 4 54 35 . 12 Thermal 35 | 4 31 . . . Explosive 4 | . . . . 4 Electromagnetic 37 | . 16 12 . 9 Robot Hit Streak 15 | 3 8 15 . 12 Robot Miss Streak 3 | 1 3 3 . 2 Penetration Max . | . . . . . Secondary Targets 5 | . 1 3 . 1 Max Gunslinging Chain 1 | . 1 1 . 1 Shots Hit Robots 115 | 5 58 33 . 19 Core Hits 64 | 3 27 14 . 20 Critical Hits 1 | . . 1 . . Critical Kills 1 | . . 1 . . Critical Parts Destroyed . | . . . . . Melee Attacks . | . . . . . Impact . | . . . . . Slashing . | . . . . . Piercing . | . . . . . Sneak Attacks . | . . . . . Combat Hostiles . | . . . . . Follow-up Attacks . | . . . . . Damage Inflicted 2312 | 73 775 352 . 1112 Guns 943 | 73 431 348 . 91 Cannons 333 | . 333 . . . Explosions 991 | . . . . 991 Melee . | . . . . . Ramming 45 | . 11 4 . 30 Kinetic 670 | 41 292 246 . 91 Thermal 432 | 32 333 . . 67 Explosive 352 | . . . . 352 Electromagnetic 813 | . 139 102 . 572 Impact . | . . . . . Slashing . | . . . . . Piercing . | . . . . . Highest Corruption 2 | . 1 1 1 2 Average Corruption 1 | . 1 1 1 1 Corruption Purged . | . . . . . Effects 10 | . 4 3 2 1 Message Errors 5 | . 2 1 1 1 Energy Discharges 3 | . 1 2 . . Data Loss (minor) 1 | . . . 1 . Weapon Failures 1 | . 1 . . . Overload Shots . | . . . . . Overflow Damage 26 | . . . . 26 Projectiles . | . . . . . Explosions 26 | . . . . 26 Melee . | . . . . . Knockbacks . | . . . . . Impact . | . . . . . Kinetic . | . . . . . Secondary . | . . . . . Self-Inflicted Damage 23 | . . . . 23 Shots 2 | . . . . 2 Rammed 5 | . 2 1 . 2 Targets Rammed 5 | . 2 1 . 2 Kicked . | . . . . . Crushed . | . . . . . Highest Temperature 214 | . 214 48 . 105 Average Temperature 39 | . 50 16 . 31 Received Heat Transfer 440 | . 198 141 . 101 Effects 2 | . 2 . . . Interference 2 | . 2 . . . Siege Activations . | . . . . . Robots Corrupted . | . . . . . Combat Hostiles . | . . . . . Parts Fried 1 | . . 1 . . Impact Corruptions . | . . . . . Robots Melted . | . . . . . Combat Hostiles . | . . . . . Parts Melted 1 | . 1 . . . Heat Transferred 878 | 75 703 . . 100 Parts Sabotaged . | . . . . . Parts Stolen . | . . . . . Parts Stripped . | . . . . . Power Chain Reactions 1 | . . . . 1 Missiles Intercepted . | . . . . . Alert | -11 -10 -10 -10 -9 ------- Run | Scr Mat Min Exi Min Peak Influence 359 | 10 359 164 . 165 Initial 24 | . 6 24 . . Average 96 | 6 156 46 . 67 Maximum Alert Level 1 | . 1 . . . Low Security (%) 89 | 100 74 100 . 100 Level 1 10 | . 25 . . . Level 2 . | . . . . . Level 3 . | . . . . . Level 4 . | . . . . . Level 5 . | . . . . . High Security . | . . . . . Max Security . | . . . . . Squads Dispatched 6 | . 5 . . 1 Investigation 3 | . 3 . . . Extermination . | . . . . . Reinforcement 3 | . 2 . . 1 Assault . | . . . . . Garrison . | . . . . . Intercept . | . . . . . Construction Impeded 1 | . . . . 1 Haulers Reinforced . | . . . . . Stealth | -11 -10 -10 -10 -9 --------- Run | Scr Mat Min Exi Min Distress Signals 3 | . 3 . . . Communications Jammed . | . . . . . Distress Signals . | . . . . . Times Spotted 65 | . 34 9 . 22 Peak Tracking Total 15 | . 6 3 . 15 Tactical Retreats 4 | . 3 1 . . Traps | -11 -10 -10 -10 -9 ------- Run | Scr Mat Min Exi Min Traps Triggered 3 | . 3 . . . Indirectly . | . . . . . Trap Hack Attempts 13 | . 10 3 . . Triggered . | . . . . . Disarmed . | . . . . . Reprogrammed 3 | . 2 1 . . Reused . | . . . . . Traps Extracted . | . . . . . Installed . | . . . . . Triggered . | . . . . . Exploded 1 | . . . 1 . Machines | -11 -10 -10 -10 -9 ---------- Run | Scr Mat Min Exi Min Machines Disabled 1 | . 1 . . . Max in Single Turn 1 | . 1 . . . Machines Sabotaged . | . . . . . Garrisons Compromised . | . . . . . Overloaded Fab Kills . | . . . . . Fab Network Shutdowns . | . . . . . Hacking | -11 -10 -10 -10 -9 --------- Run | Scr Mat Min Exi Min Machines Accessed 10 | . 6 2 2 . Terminals 4 | . 4 . . . Fabricators . | . . . . . Repair Stations 1 | . 1 . . . Recycling Units 1 | . 1 . . . Scanalyzers . | . . . . . Garrison Access . | . . . . . Total Hacks 22 | . 18 2 2 . Successful 18 | . 14 2 2 . Failed 3 | . 3 . . . Catastrophic . | . . . . . Database Lockouts 1 | . 1 . . . Manual 9 | . 8 . 1 . Terminals 13 | . 13 . . . Fabricators . | . . . . . Repair Stations 4 | . 4 . . . Recycling Units 1 | . 1 . . . Scanalyzers . | . . . . . Garrison Access . | . . . . . Terminal Hacks 11 | . 7 2 2 . Record 2 | . 1 . 1 . Robot Analysis 1 | . 1 . . . Open Door 2 | . . 2 . . Alert Level 1 | . 1 . . . Unreport Threat 1 | . 1 . . . Locate Traps 1 | . 1 . . . Hauler Manifests 1 | . 1 . . . Zone Layout 1 | . 1 . . . EX-Prototype ID Bank 1 | . . . 1 . Fabricator Hacks . | . . . . . Repair Station Hacks 4 | . 4 . . . Scan Component 2 | . 2 . . . Repair 2 | . 2 . . . Recycling Unit Hacks . | . . . . . Scanalyzer . | . . . . . Garrison Access Hacks . | . . . . . Unauthorized Hacks 3 | . 3 . . . Terminals 2 | . 2 . . . Botnet 1 | . 1 . . . Operators 1 | . 1 . . . Fabricators . | . . . . . Repair Stations . | . . . . . Recycling Units 1 | . 1 . . . Tunnel 1 | . 1 . . . Scanalyzers . | . . . . . Garrison Access . | . . . . . Data Cores Recovered . | . . . . . Used . | . . . . . Hacking Detections 4 | . 4 . . . Full Trace Events 1 | . 1 . . . Feedback Events . | . . . . . Feedback Blocked . | . . . . . Robot Schematics Acquired . | . . . . . Robots Built . | . . . . . Matter . | . . . . . Time . | . . . . . Total Robot Build Rating . | . . . . . Part Schematics Acquired . | . . . . . Parts Built . | . . . . . Matter . | . . . . . Time . | . . . . . Total Part Build Rating . | . . . . . Parts Repaired 2 | . 2 . . . Time 52 | . 52 . . . Parts Recycled . | . . . . . Recycled Matter . | . . . . . Retrieved Matter . | . . . . . Retrieved Components . | . . . . . Parts Scanalyzed . | . . . . . Part Schematics Acquired . | . . . . . Parts Damaged . | . . . . . Bothacking | -11 -10 -10 -10 -9 ------------ Run | Scr Mat Min Exi Min Used RIF Installer . | . . . . . Robots Hacked . | . . . . . Non-combat . | . . . . . Combat . | . . . . . Robot Hacks Applied . | . . . . . Relay Couplers Released . | . . . . . Robots Rewired . | . . . . . Allies Hacked . | . . . . . Hacks Repelled . | . . . . . Allies | -11 -10 -10 -10 -9 -------- Run | Scr Mat Min Exi Min Total Allies . | . . . . . Largest Group . | . . . . . Highest-Rated Group . | . . . . . Highest-Rated Ally . | . . . . . Total Orders . | . . . . . Ally Attacks . | . . . . . Total Damage . | . . . . . Kills . | . . . . . Allies Corrupted . | . . . . . Allies Melted . | . . . . . Intel | -11 -10 -10 -10 -9 ------- Run | Scr Mat Min Exi Min Robot Analysis Total 1 | . 1 . . . Derelict Logs Recovered 1 | . . 1 . . Drone Launches . | . . . . . Drone Recoveries . | . . . . . Exploration | -11 -10 -10 -10 -9 ------------- Run | Scr Mat Min Exi Min Turns Passed 3729 | 21 1248 1248 808 404 Spaces Moved 1849 | 7 598 625 433 186 Core . | . . . . . Treads 1813 | . 569 625 433 186 Legs 36 | 7 29 . . . Wheels . | . . . . . Hover . | . . . . . Flight . | . . . . . Fastest Speed 120 | 120 120 160 185 185 Average Speed 175 | 120 158 184 185 186 Slowest Speed 205 | 120 160 185 185 205 Overloaded Moves . | . . . . . Propulsion Burnouts . | . . . . . Robots Hopped . | . . . . . Cave-ins Triggered . | . . . . . Exploration Rate (%) 63 | 2 94 99 73 50 Regions Visited 4 Branch Regions 3 Pre-discovered Areas 3 | . 1 1 1 . Known Exits Taken . | . . . . . Unknown Exits Taken 4 | 1 1 1 1 . Scrap Searched 2 | . . 1 . 1 Spaces Dug . | . . . . . Terrain Destroyed 31 | . . . . 31 Melee . | . . . . . Projectile . | . . . . . AOE 31 | . . . . 31 Terrain Rammed . | . . . . . Walls Destroyed . | . . . . . Machines Disabled . | . . . . . Actions | -11 -10 -10 -10 -9 --------- Run | Scr Mat Min Exi Min Total 2138 | 11 796 676 442 213 Wait 105 | . 101 4 . . Move 1845 | 6 597 624 432 186 Hop . | . . . . . Pick Up 21 | . 10 7 3 1 Fast Attach 6 | 1 5 . . . Attach 4 | . 1 1 . 2 Detach 2 | . . . 2 . Swap 27 | . 11 6 2 8 Drop 17 | . 8 6 3 . Fire 93 | 4 51 24 . 14 Melee . | . . . . . Ram . | . . . . . Kick . | . . . . . Crush 5 | . 2 1 . 2 Escape Stasis . | . . . . . Rewire . | . . . . . Trap 13 | . 10 3 . . Miscellaneous . | . . . . . Route ------- -11/Scrapyard -10/Materials (discovered 4 exits: [*Mat x3] / *Min) -10/Mines (discovered 3 exits: [*Mat x2] / *Exi) -10/Exiles -9/Mines History --------- Turn | Location | Event 14 | -11/Scrapyard | Discovered new exit (range 3) 22 | -11/Scrapyard | Entered Materials 244 | -10/Materials | Central database locked down 282 | -10/Materials | Discovered new exit (range 12) 317 | -10/Materials | Build established: Mutant 435 | -10/Materials | Discovered new exit (range 12) 799 | -10/Materials | Repaired Assault Rifle 827 | -10/Materials | Repaired EM Pulse Gun 955 | -10/Materials | Discovered new exit (range 12) 1184 | -10/Materials | Discovered new exit (range 7) 1270 | -10/Materials | Entered Mines 1337 | -10/Mines | Found a hidden stash of uninstalled traps 1353 | -10/Mines | Discovered new exit (range 10) 1374 | -10/Mines | Met a Derelict who couldn't figure out how to use a Trap Extractor 1498 | -10/Mines | Learned location of Zion (-6) 1667 | -10/Mines | Found the Drone Emporium 2071 | -10/Mines | Discovered new exit (range 9) 2350 | -10/Mines | Deemed a non-threat by the Exiles lab entrance 2509 | -10/Mines | Discovered new exit (range 5) 2518 | -10/Mines | Entered Exiles 2568 | -10/Exiles | Met 8R-AWN 2596 | -10/Exiles | Met EX-HEX 2646 | -10/Exiles | Met EX-BIN 2668 | -10/Exiles | Aligned with FarCom system 2670 | -10/Exiles | Given EX-Vault access code 2790 | -10/Exiles | Met EX-DEC 3125 | -10/Exiles | Opened EX-Vault 3136 | -10/Exiles | Found Longsword +1 3142 | -10/Exiles | Found Supersonic Drone Bay 3180 | -10/Exiles | Warned to stay clear of 0b10 Research branches 3203 | -10/Exiles | Exiles lab attacked by MAIN.C 3219 | -10/Exiles | Build established: Hauler-Mutant 3305 | -10/Exiles | Discovered new exit (range 10) 3326 | -10/Exiles | Stole two prototypes: Longsword +1, Supersonic Drone Bay 3326 | -10/Exiles | Entered Mines 3380 | -9/Mines | A weapon hastily lodged in a ceiling crevice suddenly fell to the ground 3714 | -9/Mines | Assembled infested the area 3719 | -9/Mines | Assisted by a Guerilla fighting off Assembled 3725 | -9/Mines | Core integrity fell below 50% 3730 | -9/Mines | Self-destructed Last Messages --------------- 03697_ Slammed into U-05 Engineer. 03698_ ALERT: Construction progress impeded, dispatching reinforcements to local area. 03714_ ALERT: Infestation in the mines, dispatching Demolisher response squad. 03718_ JQ-KMM(h): "I'll hold them off! Go on ahead or try to find another way!" 03719_ A derelict emerges from the shadows: "You need to get out of here! I've been tracking a group of Assembled to figure out where they're coming from, and they're closing on this area, come on!" 03723_ as-39236 sneak attacks. 03724_ JQ-KMM(h) destroyed. 03726_ DK-RAY Mak. Leg severed. 03727_ as-31455 destroyed. 03727_ as-34523 destroyed. 03727_ as-07073 destroyed. 03729_ DK-RAY destroyed. 03729_ Critical hit. 03729_ Shock Bomb Launcher destroyed. 03729_ Lgt. Treads destroyed. Map ----- +----------------------------------------------------+ | ???????????????## ##?#####???????# #???? | | ????????????????# #??????????????# #???? | | ????????????????# ##????????###### ##??? | | ????????????????# #???????## #??? | | ????????????????# #???????# #??? | | ???????????????## #???????# ##??? | | ???????????????# #???????# ##???? | | ???????????# ### ##???????# ##????? | | ???????????# #####???## #?????? | | ???????????##### # ##???# #?????? | | ???????????????# ###### ##?????? | | ??????????????## ###### #??????? | | ???????????#### #??????? | | ???????????# #??????? | | ??????????# = # ### #??????? | | ?????????# # # ##?# ##??????? | | ?????????# # ##?# #???????? | | ?????????# ######### ##?# #???????? | | ?????????# #????????# #??# #???????? | | ?????????## ?????????# #??# #???????? | | ??????????## #?????????# ##?# ???????? | | ???????????## ?????????## #?# ???????? | | ????????????# ?????????# #?####???????? | | ????????????# ?????????## #????????????? | | ???????????? ??????????## #????????????? | | ??????????????????????## @ #????????????? | | ??????????????????????# a ##????????????? | | ?????????????????????# =%##?????????????? | | ????????????????????# %=a!#??????????????? | | ????????????????????# ??????????????? | | ????????????????????## % %??????????????? | | ?????????????????????## % ?????????????? | | ??????????????????????## ?????????????? | | ???????????????????????## aaa ????????????? | | ????????????????????????# aa #????????????? | | ????????????????????????##aa #????????????? | | ?????????????????????????? aa#????????????? | | ??????????????????????????a ????????????? | | ?????????????????????????? ????????????? | | ?????????????????????????? a ????????????? | | ?????????????????????????? ????????????? | | ?????????????????????????? ?????????????? | | ??????????????????????????????????????????? | | ??????????????????????????????????????????? | | ??????????????????????????????????????????? | | ??????????????????????????????????????????? | | ??????????????????????????????????????????? | | ??????????????????????????????????????????? | | ??????????????????????????????????????????? | | ??????????????????????????????????????????? | +----------------------------------------------------+ Best States ------------- Heat Dissipation 25 Energy Generation 14 Energy Capacity 275 Matter Stores 300 Matter Capacity 300 Sight Range 16 Terrain Scan Density 10 Evasion (%) 40 Recoil Reduction 2 Item Schematics ----------------- None Robot Schematics ------------------ None Fabricated ------------ Nothing Alien Tech Used ----------------- None Achievements -------------- None Challenges ------------ None Game ------ Seed DisruptorIonicRifle Manual? 0 Play Time 00:17:05 Cumulative 162.2 hours Start 2021.01.08 @ 16:31:50 End 2021.01.08 @ 16:46:30 Sessions 1 Manual Loads 0 Difficulty Rogue Special Mode None Game No. 119 Rogue 119 Adventurer 0 Explorer 0 Win Type - Total 3 Types 3/0/0/0/0/0/0/0/0 Lore% 44 Gallery% 59 Achievement% 44 Wizard Run 0 Options --------- ASCII 1 Keyboard 1 Movement Arrows Keybinds 0 Fullscreen 1 Font 24/Proggy Map View 76x50 Tactical HUD 1 Map Filters NONE Filters NONE Steam 1 RUN: 2ff922d0-4d8f-4954-aadf-423459e5635b